[Event "*** Titled Tuesday Blitz"]
[Site "Chess.com"]
[Date "2019.02.05"]
[Round "7"]
[White "Ginger_GM"]
[Black "GadimbayliA"]
[Result "0-1"]
[WhiteElo "2608"]
[BlackElo "2817"]
[TimeControl "180+2"]
[EndTime "14:40:55 PST"]
[Termination "GadimbayliA won by resignation"]

1. d4 {[%clk 0:03:01.9]} 1... Nf6 {[%clk 0:02:59.5]} 2. c4 {[%clk 0:03:01.7]}
2... e5 {[%clk 0:03:00.3]} 3. dxe5 {[%clk 0:03:00.8]} 3... Ng4 {[%clk
0:03:01.8]} 4. e4 {[%clk 0:02:59.5]} 4... Nxe5 {[%clk 0:03:02.4]} 5. f4 {[%clk
0:02:59.7]} 5... Nec6 {[%clk 0:03:03.7]} 6. Be3 {[%clk 0:02:54.8]} 6... g6
{[%clk 0:02:57.3]} 7. Nc3 {[%clk 0:02:54.7]} 7... Bg7 {[%clk 0:02:58.1]} 8. Nf3
{[%clk 0:02:55.1]} 8... O-O {[%clk 0:02:58]} 9. Qd2 {[%clk 0:02:52.2]} 9... d6
{[%clk 0:02:59.2]} 10. O-O-O {[%clk 0:02:50.1]} 10... Re8 {[%clk 0:02:47.5]} 11.
h4 {[%clk 0:02:32.8]} 11... Bg4 {[%clk 0:02:47.7]} 12. h5 {[%clk 0:02:33.7]}
12... gxh5 {[%clk 0:02:32.3]} 13. Be2 {[%clk 0:02:29.4]} 13... Nd7 {[%clk
0:02:27.4]} 14. Nh4 {[%clk 0:02:07.8]} 14... Bxc3 {[%clk 0:02:25.6]} 15. bxc3
{[%clk 0:02:06]} 15... Rxe4 {[%clk 0:02:07.4]} 16. Bxg4 {[%clk 0:02:03.2]} 16...
hxg4 {[%clk 0:02:09.3]} 17. Qd3 {[%clk 0:01:44.5]} 17... Qe8 {[%clk 0:01:52.4]}
18. Nf5 {[%clk 0:01:40.4]} 18... Qe6 {[%clk 0:01:53.6]} 19. Rh5 {[%clk
0:01:38.8]} 19... Nf6 {[%clk 0:01:51.1]} 20. Rg5+ {[%clk 0:01:36.6]} 20... Kf8
{[%clk 0:01:52.5]} 21. Bd4 {[%clk 0:01:03.4]} 21... Rxf4 {[%clk 0:01:23.1]} 22.
Nh6 {[%clk 0:00:24.8]} 22... Nxd4 {[%clk 0:01:10.6]} 23. cxd4 {[%clk 0:00:26.1]}
23... c5 {[%clk 0:00:54.7]} 24. d5 {[%clk 0:00:26.9]} 24... Qe4 {[%clk
0:00:51.6]} 25. Qxe4 {[%clk 0:00:28.1]} 25... Rxe4 {[%clk 0:00:53.5]} 26. Rf1
{[%clk 0:00:29.1]} 26... Rxc4+ {[%clk 0:00:47.4]} 27. Kb1 {[%clk 0:00:29.5]}
27... Ke7 {[%clk 0:00:41.7]} 28. Rgf5 {[%clk 0:00:28.6]} 28... Ne8 {[%clk
0:00:16]} 29. Rxf7+ {[%clk 0:00:29.4]} 29... Kd8 {[%clk 0:00:17]} 30. Rxh7
{[%clk 0:00:23.4]} 30... Rb4+ {[%clk 0:00:16.1]} 31. Ka1 {[%clk 0:00:24]} 31...
Rc8 {[%clk 0:00:16]} 32. Rf8 {[%clk 0:00:18.1]} 32... Re4 {[%clk 0:00:16.2]} 33.
Nf7+ {[%clk 0:00:18.4]} 33... Ke7 {[%clk 0:00:12.6]} 34. Rxe8+ {[%clk
0:00:19.4]} 34... Rxe8 {[%clk 0:00:11.5]} 35. Ng5+ {[%clk 0:00:17.7]} 35... Kf6
{[%clk 0:00:11.8]} 36. Nxe4+ {[%clk 0:00:17.4]} 36... Rxe4 {[%clk 0:00:13.7]}
37. Rxb7 {[%clk 0:00:19]} 37... Re2 {[%clk 0:00:12.7]} 38. Rxa7 {[%clk
0:00:20.2]} 38... Rxg2 {[%clk 0:00:13.8]} 39. a4 {[%clk 0:00:21.5]} 39... Ke5
{[%clk 0:00:14.7]} 40. Rg7 {[%clk 0:00:22.4]} 40... Kxd5 {[%clk 0:00:15.3]} 41.
a5 {[%clk 0:00:23.7]} 41... Rh2 {[%clk 0:00:10.6]} 42. Rxg4 {[%clk 0:00:23.3]}
42... Kc6 {[%clk 0:00:11.9]} 43. a6 {[%clk 0:00:23.1]} 43... Rh8 {[%clk
0:00:10.7]} 44. Ra4 {[%clk 0:00:23.3]} 44... Ra8 {[%clk 0:00:12.1]} 45. Kb2
{[%clk 0:00:22]} 45... Kb5 {[%clk 0:00:12.9]} 46. Ra1 {[%clk 0:00:22.2]} 46...
Rxa6 {[%clk 0:00:14.1]} 47. Rg1 {[%clk 0:00:23.6]} 47... d5 {[%clk 0:00:15]} 48.
Kc3 {[%clk 0:00:23.9]} 48... d4+ {[%clk 0:00:15.8]} 49. Kd3 {[%clk 0:00:23.2]}
49... Ra3+ {[%clk 0:00:16.9]} 50. Kc2 {[%clk 0:00:24.3]} 50... Kc4 {[%clk
0:00:18]} 51. Rg7 {[%clk 0:00:24.8]} 51... Ra2+ {[%clk 0:00:18.4]} 52. Kb1
{[%clk 0:00:25.5]} 52... Rh2 {[%clk 0:00:20.3]} 53. Rg8 {[%clk 0:00:25.7]} 53...
Kc3 {[%clk 0:00:20.9]} 54. Ka1 {[%clk 0:00:24.6]} 54... d3 {[%clk 0:00:21.7]}
0-1

[Event "*** Titled Tuesday Blitz"]
[Site "Chess.com"]
[Date "2019.02.05"]
[Round "7"]
[White "murmah2003"]
[Black "Pilopa"]
[Result "1-0"]
[WhiteElo "2655"]
[BlackElo "2477"]
[TimeControl "180+2"]
[EndTime "14:41:01 PST"]
[Termination "murmah2003 won by checkmate"]

1. d4 {[%clk 0:03:01.9]} 1... Nf6 {[%clk 0:03:00.4]} 2. Nf3 {[%clk 0:02:58.3]}
2... g6 {[%clk 0:03:00.9]} 3. c4 {[%clk 0:02:59.4]} 3... Bg7 {[%clk 0:03:01.7]}
4. Nc3 {[%clk 0:03:00.4]} 4... d5 {[%clk 0:03:03.3]} 5. Bg5 {[%clk 0:03:01]}
5... Ne4 {[%clk 0:03:00.2]} 6. Bh4 {[%clk 0:03:02.4]} 6... Nxc3 {[%clk
0:02:59.3]} 7. bxc3 {[%clk 0:03:04.3]} 7... c5 {[%clk 0:02:56.1]} 8. e3 {[%clk
0:02:59.7]} 8... O-O {[%clk 0:02:56.5]} 9. cxd5 {[%clk 0:03:00.6]} 9... cxd4
{[%clk 0:02:51]} 10. cxd4 {[%clk 0:03:02.5]} 10... Qxd5 {[%clk 0:02:51.3]} 11.
Be2 {[%clk 0:03:03.1]} 11... Nc6 {[%clk 0:02:51.7]} 12. O-O {[%clk 0:03:04.1]}
12... b6 {[%clk 0:02:42.4]} 13. Rc1 {[%clk 0:02:50.3]} 13... Bb7 {[%clk
0:02:43.2]} 14. Bc4 {[%clk 0:02:49.3]} 14... Qd7 {[%clk 0:02:44.1]} 15. Qa4
{[%clk 0:01:53.3]} 15... a6 {[%clk 0:01:32.4]} 16. Qa3 {[%clk 0:01:52.4]} 16...
b5 {[%clk 0:01:28.5]} 17. Bb3 {[%clk 0:01:53.6]} 17... e6 {[%clk 0:01:18.1]} 18.
Rfd1 {[%clk 0:01:50.1]} 18... Rfc8 {[%clk 0:01:18.4]} 19. d5 {[%clk 0:01:42.9]}
19... exd5 {[%clk 0:01:19.4]} 20. Bxd5 {[%clk 0:01:28.6]} 20... Ne5 {[%clk
0:00:57.2]} 21. Nxe5 {[%clk 0:00:56.6]} 21... Bxe5 {[%clk 0:00:49.7]} 22. Bf3
{[%clk 0:00:57]} 22... Rxc1 {[%clk 0:00:20.3]} 23. Qxc1 {[%clk 0:00:58.9]} 23...
Rc8 {[%clk 0:00:21.5]} 24. Qb1 {[%clk 0:00:26.4]} 24... Qc7 {[%clk 0:00:21.8]}
25. Bxb7 {[%clk 0:00:26.1]} 25... Qxb7 {[%clk 0:00:23.7]} 26. f4 {[%clk
0:00:23.9]} 26... Bg7 {[%clk 0:00:22.9]} 27. e4 {[%clk 0:00:25.3]} 27... h6
{[%clk 0:00:19.3]} 28. e5 {[%clk 0:00:24.8]} 28... Kh7 {[%clk 0:00:18]} 29. h3
{[%clk 0:00:24.2]} 29... Rc4 {[%clk 0:00:16.8]} 30. Bg3 {[%clk 0:00:19.2]} 30...
Qb6+ {[%clk 0:00:17.2]} 31. Kh2 {[%clk 0:00:19.5]} 31... Qe3 {[%clk 0:00:18.6]}
32. Rd3 {[%clk 0:00:10.3]} 32... Qe4 {[%clk 0:00:18.9]} 33. Qd1 {[%clk
0:00:09.2]} 33... h5 {[%clk 0:00:18.4]} 34. Rd7 {[%clk 0:00:07.6]} 34... Qf5
{[%clk 0:00:16.3]} 35. Ra7 {[%clk 0:00:06.1]} 35... h4 {[%clk 0:00:16.5]} 36.
Bxh4 {[%clk 0:00:07.3]} 36... Qxf4+ {[%clk 0:00:18]} 37. Bg3 {[%clk 0:00:08.7]}
37... Qf5 {[%clk 0:00:19.5]} 38. Qd5 {[%clk 0:00:08]} 38... Rf4 {[%clk
0:00:13.3]} 39. Rxa6 {[%clk 0:00:06.7]} 39... Bxe5 {[%clk 0:00:10.2]} 40. Ra7
{[%clk 0:00:05.6]} 40... Kg7 {[%clk 0:00:04.5]} 41. Rxf7+ {[%clk 0:00:05.7]}
41... Qxf7 {[%clk 0:00:02.7]} 42. Qxe5+ {[%clk 0:00:07.2]} 42... Qf6 {[%clk
0:00:04.1]} 43. Qxf4 {[%clk 0:00:07.9]} 43... Qxf4 {[%clk 0:00:05]} 44. Bxf4
{[%clk 0:00:09.8]} 44... Kf6 {[%clk 0:00:06.9]} 45. g4 {[%clk 0:00:10.8]} 45...
Ke6 {[%clk 0:00:08.8]} 46. Kg3 {[%clk 0:00:12.2]} 46... Kd5 {[%clk 0:00:10.7]}
47. h4 {[%clk 0:00:13.8]} 47... Kc4 {[%clk 0:00:12.6]} 48. h5 {[%clk 0:00:15.3]}
48... Kb4 {[%clk 0:00:14.5]} 49. hxg6 {[%clk 0:00:16.2]} 49... Ka3 {[%clk
0:00:16.4]} 50. g7 {[%clk 0:00:17.8]} 50... Kxa2 {[%clk 0:00:18.3]} 51. g8=Q+
{[%clk 0:00:19.5]} 51... Ka3 {[%clk 0:00:18.6]} 52. Bd6+ {[%clk 0:00:19.9]}
52... b4 {[%clk 0:00:20.5]} 53. Qc4 {[%clk 0:00:21.4]} 53... Ka4 {[%clk
0:00:19.7]} 54. Qxb4# {[%clk 0:00:22.4]} 1-0

[Event "*** Titled Tuesday Blitz"]
[Site "Chess.com"]
[Date "2019.02.05"]
[Round "7"]
[White "PowerThinking2650"]
[Black "CzechmVIII"]
[Result "1/2-1/2"]
[WhiteElo "2250"]
[BlackElo "2112"]
[TimeControl "180+2"]
[EndTime "14:41:02 PST"]
[Termination "Game drawn - insufficient material"]

1. e4 {[%clk 0:03:01.9]} 1... c5 {[%clk 0:03:00.9]} 2. Nf3 {[%clk 0:03:02.6]}
2... d6 {[%clk 0:03:02.1]} 3. d4 {[%clk 0:03:04]} 3... cxd4 {[%clk 0:03:03.5]}
4. Nxd4 {[%clk 0:03:05.9]} 4... Nf6 {[%clk 0:03:04.7]} 5. Nc3 {[%clk 0:03:06.4]}
5... g6 {[%clk 0:03:05.8]} 6. Bc4 {[%clk 0:03:06.6]} 6... Bg7 {[%clk 0:03:06.1]}
7. Be3 {[%clk 0:03:08]} 7... O-O {[%clk 0:03:03]} 8. f3 {[%clk 0:03:09.5]} 8...
Nc6 {[%clk 0:03:03.2]} 9. Qd2 {[%clk 0:03:11.1]} 9... Bd7 {[%clk 0:03:04.3]} 10.
Bb3 {[%clk 0:03:12.2]} 10... Rc8 {[%clk 0:03:02.3]} 11. O-O-O {[%clk 0:03:11.5]}
11... Ne5 {[%clk 0:03:03]} 12. h4 {[%clk 0:03:12.6]} 12... h5 {[%clk 0:03:03.3]}
13. Bg5 {[%clk 0:03:10.6]} 13... Rc5 {[%clk 0:03:03.7]} 14. Kb1 {[%clk
0:03:11.3]} 14... a5 {[%clk 0:02:57.3]} 15. a4 {[%clk 0:03:09.9]} 15... Qb6
{[%clk 0:02:57.7]} 16. Ncb5 {[%clk 0:03:07.7]} 16... Bxb5 {[%clk 0:02:49]} 17.
Nxb5 {[%clk 0:03:07.4]} 17... Rxb5 {[%clk 0:02:50.2]} 18. axb5 {[%clk 0:03:08]}
18... Qxb5 {[%clk 0:02:51.5]} 19. f4 {[%clk 0:02:44.5]} 19... Nxe4 {[%clk
0:02:23]} 20. Qd5 {[%clk 0:02:44.3]} 20... Qxd5 {[%clk 0:02:07.5]} 21. Bxd5
{[%clk 0:02:44.8]} 21... Nxg5 {[%clk 0:01:46.1]} 22. fxe5 {[%clk 0:02:31.6]}
22... Ne6 {[%clk 0:01:24.1]} 23. exd6 {[%clk 0:02:32.2]} 23... exd6 {[%clk
0:01:22.8]} 24. Bxe6 {[%clk 0:02:23.1]} 24... fxe6 {[%clk 0:01:22.2]} 25. Rxd6
{[%clk 0:02:24.6]} 25... Rf2 {[%clk 0:01:11.2]} 26. Rxe6 {[%clk 0:02:14]} 26...
Rxg2 {[%clk 0:01:11.4]} 27. Re7 {[%clk 0:02:08.4]} 27... a4 {[%clk 0:01:05.8]}
28. Rxb7 {[%clk 0:02:08.1]} 28... a3 {[%clk 0:01:07.1]} 29. bxa3 {[%clk
0:02:09.4]} 29... Rg4 {[%clk 0:00:57.7]} 30. Rb4 {[%clk 0:02:09.5]} 30... Rg3
{[%clk 0:00:59]} 31. Rb3 {[%clk 0:02:07.9]} 31... Rg4 {[%clk 0:00:59.2]} 32. Rd1
{[%clk 0:01:57]} 32... Rxh4 {[%clk 0:00:53.4]} 33. Rb8+ {[%clk 0:01:55.6]} 33...
Kh7 {[%clk 0:00:51.3]} 34. Rb7 {[%clk 0:01:56.3]} 34... Kh6 {[%clk 0:00:49.7]}
35. Rdd7 {[%clk 0:01:57.2]} 35... Bf6 {[%clk 0:00:32]} 36. Ka2 {[%clk
0:01:52.9]} 36... Rh1 {[%clk 0:00:29.9]} 37. a4 {[%clk 0:01:52.4]} 37... h4
{[%clk 0:00:28.6]} 38. Kb3 {[%clk 0:01:47.4]} 38... h3 {[%clk 0:00:25.4]} 39.
Rh7+ {[%clk 0:01:44.1]} 39... Kg5 {[%clk 0:00:25.9]} 40. a5 {[%clk 0:01:42.4]}
40... Bd4 {[%clk 0:00:17]} 41. Kc4 {[%clk 0:01:41.4]} 41... Be5 {[%clk
0:00:17.2]} 42. a6 {[%clk 0:01:39.4]} 42... h2 {[%clk 0:00:16.2]} 43. Rb5 {[%clk
0:01:27.3]} 43... Kf6 {[%clk 0:00:16.3]} 44. Ra5 {[%clk 0:01:18.4]} 44... Rc1
{[%clk 0:00:15.6]} 45. Rxh2 {[%clk 0:01:14.3]} 45... Bxh2 {[%clk 0:00:15.6]} 46.
c3 {[%clk 0:00:48.9]} 46... Bg1 {[%clk 0:00:16.1]} 47. a7 {[%clk 0:00:42.6]}
47... Bxa7 {[%clk 0:00:16.8]} 48. Rxa7 {[%clk 0:00:44.5]} 48... Re1 {[%clk
0:00:17.8]} 49. Kc5 {[%clk 0:00:43]} 49... g5 {[%clk 0:00:18.5]} 50. c4 {[%clk
0:00:43.4]} 50... g4 {[%clk 0:00:19.4]} 51. Kc6 {[%clk 0:00:42.6]} 51... Kf5
{[%clk 0:00:18.1]} 52. Rf7+ {[%clk 0:00:41.9]} 52... Kg5 {[%clk 0:00:18.2]} 53.
Rg7+ {[%clk 0:00:42.3]} 53... Kh4 {[%clk 0:00:19.5]} 54. Rh7+ {[%clk 0:00:41.8]}
54... Kg3 {[%clk 0:00:20.9]} 55. c5 {[%clk 0:00:42.2]} 55... Kg2 {[%clk
0:00:22.2]} 56. Kd7 {[%clk 0:00:41.8]} 56... g3 {[%clk 0:00:23.1]} 57. Rh6
{[%clk 0:00:40.1]} 57... Rc1 {[%clk 0:00:22.3]} 58. c6 {[%clk 0:00:40.5]} 58...
Kg1 {[%clk 0:00:23.2]} 59. c7 {[%clk 0:00:40.3]} 59... Rxc7+ {[%clk 0:00:24]}
60. Kxc7 {[%clk 0:00:41.1]} 60... g2 {[%clk 0:00:25.7]} 61. Kd6 {[%clk 0:00:42]}
61... Kf1 {[%clk 0:00:26.9]} 62. Rf6+ {[%clk 0:00:43]} 62... Ke2 {[%clk
0:00:27.8]} 63. Rg6 {[%clk 0:00:43.9]} 63... Kf1 {[%clk 0:00:29.1]} 64. Rf6+
{[%clk 0:00:44.3]} 64... Ke2 {[%clk 0:00:30.4]} 65. Rg6 {[%clk 0:00:45.3]} 65...
Kf1 {[%clk 0:00:31.7]} 66. Ke5 {[%clk 0:00:45.7]} 66... g1=Q {[%clk 0:00:31.7]}
67. Rxg1+ {[%clk 0:00:46.2]} 67... Kxg1 {[%clk 0:00:33]} 1/2-1/2

[Event "*** Titled Tuesday Blitz"]
[Site "Chess.com"]
[Date "2019.02.05"]
[Round "7"]
[White "Synctel"]
[Black "politeplayer"]
[Result "1-0"]
[WhiteElo "1922"]
[BlackElo "2012"]
[TimeControl "180+2"]
[EndTime "14:41:06 PST"]
[Termination "Synctel won by resignation"]

1. d4 {[%clk 0:03:01.9]} 1... Nf6 {[%clk 0:02:59.2]} 2. Nf3 {[%clk 0:03:02]}
2... c5 {[%clk 0:03:00.2]} 3. e3 {[%clk 0:03:01.7]} 3... e6 {[%clk 0:03:00.4]}
4. Bd3 {[%clk 0:03:00.8]} 4... d5 {[%clk 0:03:00.8]} 5. c3 {[%clk 0:03:00.5]}
5... b6 {[%clk 0:03:00.2]} 6. Nbd2 {[%clk 0:02:57.9]} 6... Bd6 {[%clk 0:03:01]}
7. O-O {[%clk 0:02:57.9]} 7... O-O {[%clk 0:03:01.8]} 8. Qe2 {[%clk 0:02:58.1]}
8... Bb7 {[%clk 0:03:01.8]} 9. dxc5 {[%clk 0:02:45]} 9... Bxc5 {[%clk
0:03:01.1]} 10. e4 {[%clk 0:02:45.9]} 10... dxe4 {[%clk 0:03:00.4]} 11. Nxe4
{[%clk 0:02:47]} 11... Nxe4 {[%clk 0:02:55.3]} 12. Bxe4 {[%clk 0:02:48.9]} 12...
Bxe4 {[%clk 0:02:42.7]} 13. Qxe4 {[%clk 0:02:50.8]} 13... Nd7 {[%clk 0:02:39.7]}
14. Bg5 {[%clk 0:02:15.7]} 14... Qc7 {[%clk 0:02:30.1]} 15. Rad1 {[%clk
0:01:58.5]} 15... h6 {[%clk 0:02:20]} 16. Bf4 {[%clk 0:01:57.7]} 16... Qc8
{[%clk 0:02:14.7]} 17. h4 {[%clk 0:01:43.6]} 17... Nf6 {[%clk 0:02:14.8]} 18.
Qe2 {[%clk 0:01:32.8]} 18... Qb7 {[%clk 0:02:11.8]} 19. Ne5 {[%clk 0:01:31.1]}
19... Rad8 {[%clk 0:02:04.7]} 20. Ng4 {[%clk 0:01:12.4]} 20... Nxg4 {[%clk
0:01:56.7]} 21. Qxg4 {[%clk 0:01:14.3]} 21... Rxd1 {[%clk 0:01:46.2]} 22. Rxd1
{[%clk 0:01:12.2]} 22... Qe4 {[%clk 0:01:44.8]} 23. Qg3 {[%clk 0:01:03.2]} 23...
Kh8 {[%clk 0:01:02.4]} 24. Rd7 {[%clk 0:00:55.1]} 24... Qe1+ {[%clk 0:01:00]}
25. Kh2 {[%clk 0:00:53.6]} 25... Bxf2 {[%clk 0:01:01.2]} 26. Qg4 {[%clk
0:00:39.1]} 26... Qg1+ {[%clk 0:00:57.9]} 27. Kh3 {[%clk 0:00:39.6]} 27... Qh1+
{[%clk 0:00:55.9]} 28. Bh2 {[%clk 0:00:40.6]} 28... Bg1 {[%clk 0:00:53.4]} 29.
Qg3 {[%clk 0:00:36.9]} 29... h5 {[%clk 0:00:43.4]} 30. Rd1 {[%clk 0:00:29.1]}
30... Qxh2+ {[%clk 0:00:43.3]} 31. Qxh2 {[%clk 0:00:28.5]} 31... Bxh2 {[%clk
0:00:44.4]} 32. Kxh2 {[%clk 0:00:30.2]} 32... Kg8 {[%clk 0:00:43.5]} 33. Rd7
{[%clk 0:00:31.1]} 33... Ra8 {[%clk 0:00:44.2]} 34. Kg3 {[%clk 0:00:31.9]} 34...
g6 {[%clk 0:00:41.6]} 35. Kf4 {[%clk 0:00:33]} 35... Kg7 {[%clk 0:00:42.3]} 36.
Ke5 {[%clk 0:00:34.3]} 36... a6 {[%clk 0:00:40.5]} 37. Rb7 {[%clk 0:00:34.2]}
37... b5 {[%clk 0:00:41]} 38. b3 {[%clk 0:00:34.7]} 38... Rd8 {[%clk 0:00:41.5]}
39. Rb6 {[%clk 0:00:33.4]} 39... Rd2 {[%clk 0:00:38.9]} 40. Rxa6 {[%clk
0:00:29.6]} 40... Rxg2 {[%clk 0:00:39.7]} 41. c4 {[%clk 0:00:31.2]} 41... bxc4
{[%clk 0:00:38.6]} 42. bxc4 {[%clk 0:00:32.4]} 42... g5 {[%clk 0:00:36.2]} 43.
c5 {[%clk 0:00:27]} 43... gxh4 {[%clk 0:00:36.2]} 44. Rb6 {[%clk 0:00:22.6]}
44... h3 {[%clk 0:00:36]} 45. Rb3 {[%clk 0:00:19.8]} 45... h2 {[%clk 0:00:21.9]}
46. Rh3 {[%clk 0:00:21.1]} 46... Rxa2 {[%clk 0:00:22.3]} 47. Rxh5 {[%clk
0:00:20.4]} 47... Ra5 {[%clk 0:00:21.1]} 48. Kd6 {[%clk 0:00:21.6]} 48... Ra6+
{[%clk 0:00:17.9]} 49. c6 {[%clk 0:00:21.8]} 49... Kf6 {[%clk 0:00:18.4]} 50.
Rxh2 {[%clk 0:00:20.3]} 50... Kg5 {[%clk 0:00:19.4]} 51. Kd7 {[%clk 0:00:21.4]}
51... f5 {[%clk 0:00:20.1]} 52. c7 {[%clk 0:00:22.8]} 52... Ra7 {[%clk
0:00:21.3]} 53. Kd8 {[%clk 0:00:23.3]} 53... Ra8+ {[%clk 0:00:21.8]} 54. c8=Q
{[%clk 0:00:23.9]} 54... Rxc8+ {[%clk 0:00:22.8]} 55. Kxc8 {[%clk 0:00:25.8]}
55... Kg4 {[%clk 0:00:23.1]} 56. Kd7 {[%clk 0:00:26.6]} 56... e5 {[%clk
0:00:23.7]} 57. Ke6 {[%clk 0:00:27.7]} 57... e4 {[%clk 0:00:23.5]} 58. Rf2
{[%clk 0:00:25.2]} 58... f4 {[%clk 0:00:21.2]} 59. Ke5 {[%clk 0:00:26.4]} 59...
f3 {[%clk 0:00:21.5]} 60. Kxe4 {[%clk 0:00:27.7]} 60... Kg3 {[%clk 0:00:22.8]}
61. Rxf3+ {[%clk 0:00:29]} 1-0

[Event "*** Titled Tuesday Blitz"]
[Site "Chess.com"]
[Date "2019.02.05"]
[Round "7"]
[White "saraswathii"]
[Black "Lagravesamuell"]
[Result "0-1"]
[WhiteElo "2271"]
[BlackElo "2490"]
[TimeControl "180+2"]
[EndTime "14:41:07 PST"]
[Termination "Lagravesamuell won by resignation"]

1. d4 {[%clk 0:02:57.7]} 1... Nf6 {[%clk 0:03:00.9]} 2. Bf4 {[%clk 0:02:58.2]}
2... d5 {[%clk 0:03:01.4]} 3. e3 {[%clk 0:02:58.8]} 3... c5 {[%clk 0:03:02.4]}
4. c3 {[%clk 0:02:59.6]} 4... Nc6 {[%clk 0:03:03.7]} 5. Nd2 {[%clk 0:03:00.3]}
5... Qb6 {[%clk 0:03:04.5]} 6. Qb3 {[%clk 0:03:00.6]} 6... c4 {[%clk 0:03:05.7]}
7. Qc2 {[%clk 0:03:01.6]} 7... g6 {[%clk 0:03:04.5]} 8. Ngf3 {[%clk 0:02:56.2]}
8... Bf5 {[%clk 0:03:04.1]} 9. Qc1 {[%clk 0:02:57.1]} 9... Bg7 {[%clk 0:03:05]}
10. Be2 {[%clk 0:02:58.1]} 10... O-O {[%clk 0:03:05.5]} 11. O-O {[%clk
0:02:58.9]} 11... Qa5 {[%clk 0:03:00.1]} 12. Ne5 {[%clk 0:02:52.4]} 12... Nxe5
{[%clk 0:02:58.4]} 13. Bxe5 {[%clk 0:02:53.3]} 13... b5 {[%clk 0:02:59.3]} 14.
Bf3 {[%clk 0:02:54.2]} 14... Rfd8 {[%clk 0:02:51.9]} 15. Bxf6 {[%clk 0:02:36.7]}
15... Bxf6 {[%clk 0:02:52.6]} 16. e4 {[%clk 0:02:33.6]} 16... dxe4 {[%clk
0:02:52.7]} 17. Bxe4 {[%clk 0:02:33.6]} 17... Bxe4 {[%clk 0:02:48.5]} 18. Nxe4
{[%clk 0:02:35.5]} 18... Bg7 {[%clk 0:02:50]} 19. Qg5 {[%clk 0:02:32.4]} 19...
Qb6 {[%clk 0:02:25.5]} 20. Rfe1 {[%clk 0:02:25.9]} 20... Re8 {[%clk 0:02:22]}
21. Nc5 {[%clk 0:02:22.7]} 21... e6 {[%clk 0:02:16.5]} 22. Re4 {[%clk
0:02:12.7]} 22... b4 {[%clk 0:02:12]} 23. Qd2 {[%clk 0:01:44]} 23... a5 {[%clk
0:02:00.2]} 24. Rae1 {[%clk 0:01:35.4]} 24... Rad8 {[%clk 0:01:57.7]} 25. Qe2
{[%clk 0:01:20.1]} 25... Qb5 {[%clk 0:01:49.9]} 26. h4 {[%clk 0:01:07.4]} 26...
Rd5 {[%clk 0:01:35.5]} 27. a4 {[%clk 0:00:47]} 27... bxa3 {[%clk 0:01:33.9]} 28.
bxa3 {[%clk 0:00:48.9]} 28... Bf8 {[%clk 0:01:26.9]} 29. a4 {[%clk 0:00:47.8]}
29... Qc6 {[%clk 0:01:27.3]} 30. Qxc4 {[%clk 0:00:37.1]} 30... Bxc5 {[%clk
0:01:26.1]} 31. dxc5 {[%clk 0:00:39]} 31... Rxc5 {[%clk 0:01:25.7]} 32. Qd4
{[%clk 0:00:36.5]} 32... Rxc3 {[%clk 0:01:25.6]} 33. Re5 {[%clk 0:00:37.1]}
33... Rc4 {[%clk 0:01:23.6]} 34. Qd2 {[%clk 0:00:31.2]} 34... Rxa4 {[%clk
0:01:18.3]} 35. h5 {[%clk 0:00:31.5]} 35... Rg4 {[%clk 0:00:55.9]} 36. f4 {[%clk
0:00:31.3]} 36... a4 {[%clk 0:00:51]} 37. f5 {[%clk 0:00:26]} 37... Qb6+ {[%clk
0:00:34.8]} 38. Kh2 {[%clk 0:00:22.5]} 38... Rd8 {[%clk 0:00:32.1]} 39. Qe2
{[%clk 0:00:13.9]} 39... gxf5 {[%clk 0:00:30]} 40. g3 {[%clk 0:00:09.6]} 40...
a3 {[%clk 0:00:29]} 41. h6 {[%clk 0:00:10.1]} 41... Qb2 {[%clk 0:00:29.4]} 42.
Qxb2 {[%clk 0:00:09.8]} 42... axb2 {[%clk 0:00:31.2]} 43. R5e2 {[%clk
0:00:11.3]} 43... Rb8 {[%clk 0:00:30.6]} 44. Rb1 {[%clk 0:00:12.3]} 44... Rgb4
{[%clk 0:00:31.3]} 45. Kg2 {[%clk 0:00:13.8]} 45... R8b5 {[%clk 0:00:30.2]} 46.
Kf3 {[%clk 0:00:14.6]} 46... Kf8 {[%clk 0:00:31.2]} 47. Ke3 {[%clk 0:00:14.6]}
47... Re4+ {[%clk 0:00:31.2]} 48. Kf3 {[%clk 0:00:15.2]} 48... Rxe2 {[%clk
0:00:33.1]} 49. Kxe2 {[%clk 0:00:17.1]} 49... Ke7 {[%clk 0:00:34.6]} 0-1